bitfinex-derivatives/quotes_BTCF0:USTF0_20250924
["timestamp","ask_amount","ask_price","bid_price","bid_amount"]
[1758702228075,0.001,112440.0,112430.0,1.53044803]
[1758702230473,0.03618,112440.0,112430.0,1.53040803]
[1758702235485,0.1250803,112440.0,112430.0,0.72236803]
[1758702235676,0.1250803,112440.0,112430.0,1.16960803]
[1758702235877,0.1250803,112440.0,112430.0,1.32964046]
[1758702236981,0.1250803,112440.0,112430.0,0.52160046]
[1758702237182,0.1250803,112440.0,112430.0,1.32960046]
[1758702237378,0.1250803,112440.0,112430.0,1.07904863]
[1758702237883,0.1250803,112440.0,112430.0,1.32960046]
[1758702240685,0.1250803,112440.0,112430.0,0.52160046]
[1758702240886,0.1250803,112440.0,112430.0,1.07904863]
[1758702241185,0.4858803,112440.0,112430.0,0.18214243]
[1758702241388,0.8858803,112440.0,112430.0,0.27105063]
[1758702241581,0.8858803,112440.0,112430.0,1.07905063]
[1758702241782,0.8858803,112440.0,112430.0,0.27105063]
[1758702241982,0.8858803,112440.0,112430.0,1.07905063]
[1758702243284,0.79698,112440.0,112430.0,1.07905063]
[1758702244289,0.43618,112440.0,112430.0,1.07905063]
[1758702245086,0.43618,112440.0,112430.0,1.32960246]
[1758702245690,0.001,112440.0,112430.0,1.32960246]
[1758702245895,0.001,112440.0,112430.0,1.69040246]
[1758702246095,0.01386,112450.0,112440.0,0.0889002]
[1758702246296,0.03632,112450.0,112440.0,0.36238203]
[1758702246885,0.03632,112450.0,112440.0,0.72318203]
[1758702248098,0.04232,112450.0,112440.0,0.72318203]
[1758702248785,0.03832,112450.0,112440.0,0.72318203]
[1758702248985,0.1272123,112450.0,112440.0,0.4726302]
[1758702249185,0.1272123,112450.0,112440.0,0.72318203]
[1758702249583,0.1262123,112450.0,112440.0,0.4726302]
[1758702251997,0.1262123,112450.0,112440.0,0.63266263]
[1758702254803,0.03732,112450.0,112440.0,0.63266263]
[1758702255904,0.4870123,112450.0,112440.0,0.27186263]
[1758702256103,0.4870123,112450.0,112440.0,0.1118302]
[1758702257007,0.4870123,112450.0,112440.0,0.27186263]
[1758702257702,0.4870123,112450.0,112440.0,0.1118302]
[1758702263409,0.4870123,112450.0,112440.0,0.27186263]
[1758702265111,0.4870123,112450.0,112440.0,0.1118302]
[1758702269723,0.39812,112450.0,112440.0,0.1118302]
[1758702270618,0.03732,112450.0,112440.0,0.1118302]
[1758702272124,0.03732,112450.0,112440.0,0.36238203]
[1758702274631,0.03732,112450.0,112440.0,0.52241446]
[1758702275533,0.03732,112450.0,112440.0,0.88321446]
[1758702285534,0.001,112450.0,112440.0,1.29122446]
[1758702285838,0.001,112450.0,112440.0,1.26990865]
[1758702286038,0.0008999,112450.0,112440.0,1.10987622]
[1758702286242,1e-07,112450.0,112440.0,1.20262905]
[1758702286543,1e-07,112450.0,112440.0,1.98649751]
[1758702287241,0.0001,112460.0,112450.0,0.14270235]
[1758702287442,0.02183,112470.0,112460.0,0.1115644]
[1758702287746,0.02163,112470.0,112460.0,0.75405046]
[1758702288427,0.03484,112470.0,112460.0,0.75405046]
[1758702288834,0.32252606,112470.0,112460.0,0.75405046]
[1758702289034,0.32252606,112470.0,112460.0,1.56701046]
[1758702289334,0.04084,112470.0,112460.0,1.56701046]
[1758702289842,0.04084,112470.0,112460.0,1.63756375]
[1758702290446,0.04284,112470.0,112460.0,1.63756375]
[1758702291244,0.32452606,112470.0,112460.0,0.75405046]
[1758702291647,0.41340256,112470.0,112460.0,0.9244044]
[1758702292247,0.41340256,112470.0,112460.0,1.20609046]
[1758702292746,0.77420256,112470.0,112460.0,0.1115644]
[1758702293145,0.8925165,112470.0,112460.0,0.1115644]
[1758702293446,1.17420256,112470.0,112460.0,0.1115644]
[1758702294036,0.1234744,112460.0,112450.0,1.22706441]
[1758702294237,0.76596046,112460.0,112450.0,1.22706441]
[1758702294743,0.40516046,112460.0,112450.0,1.22706441]
[1758702295439,0.76596046,112460.0,112450.0,1.22706441]
[1758702296147,0.76596046,112460.0,112450.0,0.41410441]
[1758702297046,0.76696046,112460.0,112450.0,0.41410441]
[1758702298438,0.40616046,112460.0,112450.0,0.41410441]
[1758702298642,0.31727606,112460.0,112450.0,0.41410441]
[1758702298839,0.03559,112460.0,112450.0,0.77490441]
[1758702301545,0.03559,112460.0,112450.0,0.49321835]
[1758702302050,0.03559,112460.0,112450.0,0.77490441]
[1758702306754,0.03559,112460.0,112450.0,0.41410441]
[1758702308162,0.03559,112460.0,112450.0,0.57391977]
[1758702310263,0.001,112460.0,112450.0,0.93471977]
[1758702310759,0.001,112460.0,112450.0,1.33471977]
[1758702312153,0.001,112460.0,112450.0,1.17490441]
[1758702318875,0.001,112460.0,112450.0,1.38283344]
[1758702319363,0.001,112460.0,112450.0,1.02203344]
[1758702319561,0.001,112460.0,112450.0,1.38283344]
[1758702320559,0.001,112460.0,112450.0,1.63168398]
[1758702321265,0.001,112460.0,112450.0,1.42375495]
[1758702321460,0.001,112460.0,112450.0,1.26382886]
[1758702321967,0.0002,112470.0,112460.0,0.0888846]
[1758702322156,0.03585,112480.0,112470.0,0.1104567]
[1758702322360,0.03565,112480.0,112470.0,0.39214276]
[1758702325269,0.04365,112480.0,112470.0,0.39214276]
[1758702326963,0.03103,112480.0,112470.0,0.40015276]
[1758702327772,0.04423,112480.0,112470.0,0.39214276]
[1758702327966,0.04223,112480.0,112470.0,0.39214276]
[1758702328171,0.04323,112480.0,112470.0,0.39214276]
[1758702328869,0.03723,112480.0,112470.0,0.39214276]
[1758702333075,0.1260989,112480.0,112470.0,0.39214276]
[1758702335275,0.03723,112480.0,112470.0,0.39214276]
[1758702335677,0.03723,112480.0,112470.0,0.67382882]
[1758702335875,0.03723,112480.0,112470.0,0.39214276]
[1758702337377,0.03723,112480.0,112470.0,0.55203889]
[1758702338278,0.03723,112480.0,112470.0,0.39214276]
[1758702341773,0.03723,112480.0,112470.0,0.1104567]
[1758702341978,0.03723,112480.0,112470.0,0.39214276]
[1758702348683,0.03723,112480.0,112470.0,0.36085412]
[1758702349283,0.03723,112480.0,112470.0,0.36963469]
[1758702349484,0.03723,112480.0,112470.0,0.73043469]
[1758702351091,0.03723,112480.0,112470.0,0.72165412]
[1758702355498,0.02403,112480.0,112470.0,0.72165412]
[1758702355797,0.03685,112480.0,112470.0,0.72165412]
[1758702357602,0.03685,112480.0,112470.0,0.4712567]
[1758702357802,0.1257189,112480.0,112470.0,0.4712567]
[1758702358001,0.1257189,112480.0,112470.0,0.72165412]
[1758702361001,0.03685,112480.0,112470.0,0.72165412]
[1758702361803,0.1257188,112480.0,112470.0,0.72165412]
[1758702365810,0.03685,112480.0,112470.0,0.72165412]
[1758702366405,0.1257188,112480.0,112470.0,0.72165412]
[1758702366806,0.1257188,112480.0,112470.0,1.52989412]
[1758702370507,0.1257188,112480.0,112470.0,1.32908413]
[1758702372105,0.1257188,112480.0,112470.0,0.27044671]
[1758702372307,0.37611622,112480.0,112470.0,0.99045001]
[1758702372502,0.73691622,112480.0,112470.0,0.99045001]
[1758702372698,0.73691622,112480.0,112470.0,0.18157001]
[1758702375001,0.4865188,112480.0,112470.0,0.18157001]
[1758702388721,0.4865188,112480.0,112470.0,0.27044681]
[1758702388923,0.4865188,112480.0,112470.0,0.18157001]
[1758702389220,0.4865188,112480.0,112470.0,0.02158]
[1758702389822,0.73691622,112480.0,112470.0,0.02158]
[1758702390014,0.4865188,112480.0,112470.0,0.02158]
[1758702406626,0.4865188,112480.0,112470.0,0.1104567]
[1758702407030,0.4865188,112480.0,112470.0,0.27044671]
[1758702407233,0.4865188,112480.0,112470.0,0.18157001]
[1758702408234,0.4865188,112480.0,112470.0,0.27044671]
[1758702408636,1.57650936,112480.0,112470.0,0.18157001]
[1758702408834,1.57650936,112480.0,112470.0,0.15999001]
[1758702409332,0.1022967,112470.0,112460.0,0.48531992]
[1758702409531,0.40665726,112470.0,112460.0,0.48531992]
[1758702410228,0.1249067,112470.0,112460.0,0.48531992]
[1758702411538,0.1249067,112470.0,112460.0,0.48631992]
[1758702412238,0.1249067,112470.0,112460.0,0.49231992]
[1758702412538,0.76845726,112470.0,112460.0,0.42040227]
[1758702412737,0.76845726,112470.0,112460.0,0.04376711]
[1758702413338,0.76845726,112470.0,112460.0,0.02102711]
[1758702414634,1.16845726,112470.0,112460.0,0.02102711]
[1758702414843,1.45020782,112470.0,112460.0,0.02102711]
[1758702418638,1.51963871,112470.0,112460.0,0.02102711]
[1758702428151,0.1249157,112460.0,112450.0,0.0001]
[1758702428347,1.57578626,112460.0,112450.0,0.0001]
[1758702429057,1.97578626,112460.0,112450.0,0.0001]
[1758702429460,1.97578626,112460.0,112450.0,0.0071]
[1758702430159,1.98178626,112460.0,112450.0,0.0011]
[1758702431961,1.98378626,112460.0,112450.0,0.0001]
[1758702434965,1.7020357,112460.0,112450.0,0.0001]
[1758702435261,1.98378626,112460.0,112450.0,0.0001]
[1758702449869,1.58378626,112460.0,112450.0,0.0001]
[1758702455872,1.94458626,112460.0,112450.0,0.0001]
[1758702464077,1.13626626,112460.0,112450.0,0.39248406]
[1758702464277,1.94446626,112460.0,112450.0,0.39248406]
[1758702464583,1.6627157,112460.0,112450.0,0.79248406]
[1758702465077,0.76563,112460.0,112450.0,0.80259406]
[1758702465277,0.75221,112460.0,112450.0,0.80259406]
[1758702465984,0.03061,112460.0,112450.0,0.80259406]
[1758702466278,0.008,112460.0,112450.0,0.80259406]
[1758702466480,0.008,112460.0,112450.0,1.16339406]
[1758702466684,0.002,112460.0,112450.0,1.16339406]
[1758702467675,0.002,112460.0,112450.0,1.5102648]
[1758702467978,0.0002,112470.0,112460.0,0.1201456]
[1758702468181,0.02351,112480.0,112470.0,0.1121277]
[1758702468483,0.03673,112480.0,112470.0,0.55386827]
[1758702468879,1.29169304,112490.0,112480.0,0.0888698]
[1758702469085,0.50664304,112490.0,112480.0,0.41427477]
[1758702469286,0.50664304,112490.0,112480.0,0.81427477]
[1758702470588,0.50664304,112490.0,112480.0,0.53252421]
[1758702471189,0.51764304,112490.0,112480.0,0.53252421]
[1758702471586,0.05904,112490.0,112480.0,0.79091311]
[1758702471888,0.02219,112490.0,112480.0,2.39343518]
[1758702472086,0.02419,112490.0,112480.0,2.39343518]
[1758702472681,0.02419,112490.0,112480.0,2.40233967]
[1758702473289,0.02419,112490.0,112480.0,2.15196077]
[1758702473692,0.01319,112490.0,112480.0,2.40933967]
[1758702474693,0.01119,112490.0,112480.0,2.40933967]
[1758702474891,0.01219,112490.0,112480.0,2.40933967]
[1758702475590,0.01119,112490.0,112480.0,2.40933967]
[1758702475794,0.01119,112490.0,112480.0,2.41133967]
[1758702476093,0.01119,112490.0,112480.0,2.48359382]
[1758702479697,0.01119,112490.0,112480.0,2.22431043]
[1758702479901,0.04792,112490.0,112480.0,0.21377836]
[1758702480095,0.40872,112490.0,112480.0,0.46415726]
[1758702480296,0.40872,112490.0,112480.0,1.27195726]
[1758702480995,0.04792,112490.0,112480.0,1.27195726]
[1758702481301,0.04792,112490.0,112480.0,1.26595726]
[1758702482396,1.1479607,112490.0,112480.0,0.02340441]
[1758702482594,1.1479607,112490.0,112480.0,0.02140441]
[1758702482595,1.9557207,112490.0,112480.0,0.02140441]
[1758702482796,1.9557207,112490.0,112480.0,0.02240441]
[1758702483503,2.02679546,112490.0,112480.0,0.02240441]
[1758702484801,2.02679546,112490.0,112480.0,0.02140441]
[1758702485005,2.03179546,112490.0,112480.0,0.02140441]
[1758702485301,2.03179546,112490.0,112480.0,0.02040441]
[1758702485498,2.03279546,112490.0,112480.0,0.02040441]
[1758702486403,2.03379546,112490.0,112480.0,0.02040441]
[1758702487003,2.03979546,112490.0,112480.0,0.02040441]
[1758702488099,2.02879546,112490.0,112480.0,0.02040441]
[1758702488303,2.04479546,112490.0,112480.0,0.02040441]
[1758702489700,2.04679546,112490.0,112480.0,0.02040441]
[1758702489898,2.05279546,112490.0,112480.0,0.02040441]
[1758702490405,2.04879546,112490.0,112480.0,0.02040441]
[1758702490605,2.05379546,112490.0,112480.0,0.02040441]
[1758702512618,2.41459546,112490.0,112480.0,0.02040441]
[1758702514319,2.01455546,112490.0,112480.0,0.04292441]
[1758702514624,2.01455546,112490.0,112480.0,0.02040441]
[1758702530540,2.04595203,112490.0,112480.0,0.02040441]
[1758702548861,1.32435203,112490.0,112480.0,0.02040441]
[1758702549060,2.04595203,112490.0,112480.0,0.02040441]
[1758702561274,0.1237176,112470.0,112460.0,0.0233]
[1758702561468,0.1237256,112460.0,112450.0,0.55395758]
[1758702561768,0.39564,112460.0,112450.0,0.55395758]
[1758702562173,0.4845256,112460.0,112450.0,0.55395758]
[1758702563570,0.4915256,112460.0,112450.0,0.55395758]
[1758702564276,0.50061486,112460.0,112450.0,0.55395758]
[1758702564571,0.4915256,112460.0,112450.0,0.55395758]
[1758702568970,0.4915256,112460.0,112450.0,0.55395898]
[1758702569576,0.4915256,112460.0,112450.0,0.39396897]
[1758702585086,0.4915256,112460.0,112450.0,0.1121935]
[1758702585284,0.4915256,112460.0,112450.0,0.39396897]
[1758702587487,0.4915256,112460.0,112450.0,0.55398623]
[1758702587689,0.4915256,112460.0,112450.0,0.57435362]
[1758702592285,0.4915256,112460.0,112450.0,0.41433636]
[1758702592693,0.4915256,112460.0,112450.0,0.38305508]
[1758702594892,0.4915256,112460.0,112450.0,0.54311349]
[1758702596291,0.007,112460.0,112450.0,0.94311349]
[1758702596991,0.007,112460.0,112450.0,1.30391349]
[1758702597191,0.007,112460.0,112450.0,1.14385508]
[1758702600896,0.007,112460.0,112450.0,1.30383653]
[1758702601395,0.007,112460.0,112450.0,1.49405931]
[1758702601596,0.007,112460.0,112450.0,1.70198834]
[1758702601895,0.007,112460.0,112450.0,1.54200689]
[1758702603586,0.002,112460.0,112450.0,1.54200689]
[1758702603782,0.002,112460.0,112450.0,2.34892689]
[1758702603990,0.002,112460.0,112450.0,2.14099786]
[1758702604292,0.001,112460.0,112450.0,2.14299786]
[1758702605095,1e-07,112460.0,112450.0,2.14199786]
[1758702607299,0.01119,112490.0,112480.0,0.1190496]
[1758702607493,0.01119,112490.0,112480.0,1.53714379]
[1758702607799,0.01119,112490.0,112480.0,1.71760797]
[1758702607995,0.01119,112490.0,112480.0,1.8871373]
[1758702608297,0.01119,112490.0,112480.0,2.2871373]
[1758702609093,0.01519,112490.0,112480.0,2.62653223]
[1758702609901,0.01519,112490.0,112480.0,2.37603804]
[1758702610099,0.01519,112490.0,112480.0,2.38471247]
[1758702610499,0.01519,112490.0,112480.0,2.13421828]
[1758702610799,0.01119,112490.0,112480.0,2.38471247]
[1758702611000,0.02919,112490.0,112480.0,2.38471247]
[1758702611401,0.01219,112490.0,112480.0,2.38471247]
[1758702611702,0.01119,112490.0,112480.0,2.38471247]
[1758702613202,0.01119,112490.0,112480.0,2.13421828]
[1758702613504,0.01119,112490.0,112480.0,2.38471247]
[1758702613702,0.01119,112490.0,112480.0,2.37603804]
[1758702615004,0.01119,112490.0,112480.0,2.21629585]
[1758702615906,0.01119,112490.0,112480.0,2.37587804]
[1758702619012,0.01119,112490.0,112480.0,2.21613585]
[1758702620599,0.01119,112490.0,112480.0,2.46663004]
[1758702628709,0.0001,112500.0,112490.0,0.1112317]
[1758702628910,0.0001,112510.0,112500.0,0.14032085]
[1758702629123,0.4850136,112520.0,112510.0,0.1112159]
[1758702629421,0.4850136,112520.0,112510.0,0.36171009]
[1758702629422,0.4848136,112520.0,112510.0,0.36171009]
[1758702630626,0.4878136,112520.0,112510.0,0.36171009]
[1758702631428,0.4988136,112520.0,112510.0,0.36171009]
[1758702631627,0.1380136,112520.0,112510.0,0.36171009]
[1758702632324,0.03817,112520.0,112510.0,0.36171009]
[1758702632525,0.4850052,112530.0,112520.0,0.1112081]
[1758702632729,0.4848052,112530.0,112520.0,1.16806229]
[1758702633524,0.1240052,112530.0,112520.0,1.16806229]
[1758702633729,0.8848052,112530.0,112520.0,0.02237]
[1758702634134,0.8878052,112530.0,112520.0,0.02237]
[1758702634732,0.8988052,112530.0,112520.0,0.02237]
[1758702639033,0.1112982,112520.0,112510.0,0.02237]
[1758702639233,0.4851282,112520.0,112510.0,0.02237]
[1758702639630,0.4851282,112520.0,112510.0,0.27286419]
[1758702640537,0.4861282,112520.0,112510.0,0.27286419]
[1758702641236,0.4921282,112520.0,112510.0,0.27286419]
[1758702643838,0.4921282,112520.0,112510.0,0.36171029]
[1758702644039,0.4921282,112520.0,112510.0,0.27286419]
[1758702644441,0.4921282,112520.0,112510.0,0.02237]
[1758702651848,0.4921282,112520.0,112510.0,0.27286419]
[1758702654547,0.4921282,112520.0,112510.0,0.30391062]
[1758702656250,0.4921282,112520.0,112510.0,0.39275672]
[1758702658846,0.1313282,112520.0,112510.0,0.39275672]
[1758702659051,0.4921282,112520.0,112510.0,0.39275672]
[1758702659654,0.1313282,112520.0,112510.0,0.39275672]
[1758702659846,0.1313282,112520.0,112510.0,0.1112161]
[1758702660153,0.1313282,112520.0,112510.0,0.39275672]
[1758702661849,0.4921282,112520.0,112510.0,0.39275672]
[1758702663453,0.4921282,112520.0,112510.0,0.55249891]
[1758702664255,0.4921282,112520.0,112510.0,0.39275672]
[1758702665855,0.4921282,112520.0,112510.0,0.55249891]
[1758702667555,0.4921282,112520.0,112510.0,0.39275672]
[1758702668154,0.1313282,112520.0,112510.0,0.39275672]
[1758702668355,0.4921282,112520.0,112510.0,0.39275672]
[1758702668556,0.1313282,112520.0,112510.0,0.39275672]
[1758702668856,0.4921282,112520.0,112510.0,0.39275672]
[1758702670457,0.1313282,112520.0,112510.0,0.39275672]
[1758702671254,0.04249,112520.0,112510.0,0.39275672]
[1758702672650,0.02946,112520.0,112510.0,0.79275672]
[1758702672850,0.02946,112520.0,112510.0,0.80076672]
[1758702673456,0.007,112520.0,112510.0,0.80076672]
[1758702674163,0.007,112520.0,112510.0,0.8097193]
[1758702674861,0.007,112520.0,112510.0,1.1705193]
[1758702676060,0.007,112520.0,112510.0,1.16156672]
[1758702683866,0.028,112520.0,112510.0,1.16156672]
[1758702684066,0.4776383,112520.0,112510.0,0.80076672]
[1758702684564,0.1168383,112520.0,112510.0,0.80076672]
[1758702685965,0.028,112520.0,112510.0,0.80076672]
[1758702692669,0.1168383,112520.0,112510.0,0.80076672]
[1758702697273,0.1168383,112520.0,112510.0,0.96050891]
[1758702697471,0.1168383,112520.0,112510.0,0.67896829]
[1758702697667,0.1296183,112520.0,112510.0,0.95249891]
[1758702698370,0.007,112520.0,112510.0,0.95249891]
[1758702699576,0.007,112520.0,112510.0,0.55249891]
[1758702701582,0.0002,112530.0,112520.0,0.0888383]
[1758702701875,0.0002,112540.0,112530.0,0.1213504]
[1758702702067,0.4838487,112550.0,112540.0,0.1112325]
[1758702702269,0.39483,112550.0,112540.0,1.27065087]
[1758702702476,0.39483,112550.0,112540.0,1.27866087]
[1758702703278,0.4836447,112550.0,112540.0,1.27866087]
[1758702703477,0.4946447,112550.0,112540.0,1.27866087]
[1758702703678,0.4976447,112550.0,112540.0,1.27866087]
[1758702703879,0.04803,112550.0,112540.0,1.27866087]
[1758702704583,0.1368448,112550.0,112540.0,1.27866087]
[1758702708487,0.04803,112550.0,112540.0,1.27866087]
[1758702708987,0.014,112550.0,112540.0,1.27866087]
[1758702710586,0.1028148,112550.0,112540.0,1.27866087]
[1758702711878,0.1162048,112550.0,112540.0,1.27866087]
[1758702712288,0.1162048,112550.0,112540.0,1.27065087]
[1758702713490,0.1028148,112550.0,112540.0,1.27866087]
[1758702714591,0.1245948,112550.0,112540.0,1.24717919]
[1758702716098,0.014,112550.0,112540.0,1.24717919]
[1758702716297,0.014,112550.0,112540.0,1.60797919]
[1758702716593,0.014,112550.0,112540.0,2.00797919]
[1758702716785,0.014,112550.0,112540.0,2.09683253]
[1758702719696,0.014,112550.0,112540.0,2.10575571]
[1758702720593,0.014,112550.0,112540.0,2.19822191]
[1758702720991,0.014,112550.0,112540.0,2.3579641]
[1758702721798,0.014,112550.0,112540.0,2.19822191]
[1758702728195,0.014,112550.0,112540.0,2.44828085]
[1758702728397,0.0002,112560.0,112550.0,0.1112048]
[1758702728601,0.0002,112570.0,112560.0,0.119207]
[1758702728809,0.13246127,112580.0,112570.0,0.1111891]
[1758702729105,0.13226127,112580.0,112570.0,0.36124804]
[1758702730305,0.15626127,112580.0,112570.0,0.36124804]
[1758702730494,0.16326127,112580.0,112570.0,0.36224804]
[1758702731202,0.16326127,112580.0,112570.0,0.1121891]
[1758702731403,0.16326127,112580.0,112570.0,0.36224804]
[1758702736706,0.16326127,112580.0,112570.0,0.1121891]
[1758702736908,0.16326127,112580.0,112570.0,0.36224804]
[1758702738204,0.1543549,112580.0,112570.0,0.36224804]
[1758702740410,0.16303667,112580.0,112570.0,0.36224804]
[1758702740911,0.1543549,112580.0,112570.0,0.36224804]
[1758702743913,0.16310228,112580.0,112570.0,0.36224804]
[1758702744814,0.06556,112580.0,112570.0,0.36224804]
[1758702745016,0.031,112580.0,112570.0,0.37235804]
[1758702745215,0.031,112580.0,112570.0,0.86604552]
[1758702745817,0.031,112580.0,112570.0,1.22684552]
[1758702751709,0.031,112580.0,112570.0,1.22584552]
[1758702751915,0.4849984,112590.0,112580.0,0.1105913]
[1758702752117,0.4847984,112590.0,112580.0,1.16545024]
[1758702752919,0.4847984,112590.0,112580.0,1.16745024]
[1758702754220,0.4867984,112590.0,112580.0,1.16745024]
[1758702754919,0.4867984,112590.0,112580.0,1.16741024]
[1758702755321,0.4867984,112590.0,112580.0,0.9173513]
[1758702755522,0.4867984,112590.0,112580.0,1.16741024]
[1758702756522,0.4867984,112590.0,112580.0,1.18840455]
[1758702759127,0.8867984,112590.0,112580.0,0.002]
[1758702759423,1.54161734,112590.0,112580.0,0.002]
[1758702759612,2.99161734,112590.0,112580.0,0.002]
[1758702760120,1.2915184,112590.0,112580.0,0.27385894]
[1758702763329,1.2915184,112590.0,112580.0,0.25205894]
[1758702763524,1.2915184,112590.0,112580.0,0.002]
[1758702764729,1.2915184,112590.0,112580.0,0.0238]
[1758702767624,1.6915184,112590.0,112580.0,0.0238]
[1758702770031,1.6915184,112590.0,112580.0,0.002]
[1758702771128,1.6915184,112590.0,112580.0,0.02332]
[1758702772830,0.4867984,112590.0,112580.0,0.27337894]
[1758702773028,0.39801,112590.0,112580.0,0.36217014]
[1758702773934,0.4867932,112590.0,112580.0,0.36217014]
[1758702774533,0.4867932,112590.0,112580.0,0.67440292]
[1758702775838,0.39801,112590.0,112580.0,0.67440292]
[1758702776636,0.39801,112590.0,112580.0,0.1121112]
[1758702776829,0.39801,112590.0,112580.0,0.39325706]
[1758702777432,0.39801,112590.0,112580.0,0.67440292]
[1758702778039,0.02443,112590.0,112580.0,0.67986339]
[1758702778241,0.02443,112590.0,112580.0,1.24215511]
[1758702779243,0.1265932,112590.0,112580.0,0.67185339]
[1758702779446,0.03781,112590.0,112580.0,0.95299925]
[1758702779843,0.03781,112590.0,112580.0,1.23414511]
[1758702780545,0.03781,112590.0,112580.0,1.07440292]
[1758702781145,0.03781,112590.0,112580.0,1.14564103]
[1758702782848,0.03781,112590.0,112580.0,1.50644103]
[1758702783143,0.03781,112590.0,112580.0,1.14564103]
[1758702784649,0.03781,112590.0,112580.0,1.50644103]
[1758702784851,0.03781,112590.0,112580.0,1.14564103]
[1758702785249,0.03781,112590.0,112580.0,1.50644103]
[1758702788354,0.02443,112590.0,112580.0,1.50644103]
[1758702788546,0.02443,112590.0,112580.0,2.31192103]
[1758702788751,0.03781,112590.0,112580.0,2.31192103]
[1758702790753,0.002,112590.0,112580.0,2.31993103]
[1758702796059,0.0002,112600.0,112590.0,0.1103633]
[1758702796250,0.39702,112610.0,112600.0,0.1103554]
[1758702796451,0.39682,112610.0,112600.0,1.21740478]
[1758702796855,0.40572608,112610.0,112600.0,1.21740478]
[1758702797551,0.41472608,112610.0,112600.0,1.21740478]
[1758702797755,0.50349358,112610.0,112600.0,1.21740478]
[1758702798555,0.50849358,112610.0,112600.0,1.21740478]
[1758702818872,0.014,112610.0,112600.0,1.50656064]
[1758702819167,0.014,112610.0,112600.0,1.90656064]
[1758702819371,0.014,112610.0,112600.0,2.0092271]
[1758702819674,0.014,112610.0,112600.0,1.6092271]
[1758702820561,0.1027675,112610.0,112600.0,1.32808124]
[1758702820766,0.1389375,112610.0,112600.0,1.21684478]
[1758702822472,0.05017,112610.0,112600.0,1.21684478]
[1758702822978,0.1389376,112610.0,112600.0,1.21684478]
[1758702827980,0.4997376,112610.0,112600.0,0.13109892]
[1758702828277,0.4997376,112610.0,112600.0,0.41224478]
[1758702828482,0.1389376,112610.0,112600.0,0.41224478]
[1758702829067,0.05017,112610.0,112600.0,0.41224478]
[1758702830179,0.1389376,112610.0,112600.0,0.41224478]
[1758702830872,0.05017,112610.0,112600.0,0.41224478]
[1758702831382,0.1389375,112610.0,112600.0,0.41224478]
[1758702832582,0.1389375,112610.0,112600.0,1.21804478]
[1758702833084,0.1339375,112610.0,112600.0,1.21804478]
[1758702833285,0.1279375,112610.0,112600.0,1.21804478]
[1758702833484,0.1319375,112610.0,112600.0,1.21804478]
[1758702835879,0.04317,112610.0,112600.0,1.21804478]
[1758702836378,0.1319375,112610.0,112600.0,1.21804478]
[1758702836585,0.1319375,112610.0,112600.0,1.18671776]
[1758702842391,0.1319375,112610.0,112600.0,1.34645995]
[1758702842392,0.04317,112610.0,112600.0,1.34645995]
[1758702842596,0.1319375,112610.0,112600.0,1.34645995]
[1758702842787,0.4927375,112610.0,112600.0,1.34645995]
[1758702842982,0.1319375,112610.0,112600.0,1.34645995]
[1758702843189,0.4927375,112610.0,112600.0,1.34645995]
[1758702844693,0.1319375,112610.0,112600.0,1.34645995]
[1758702845493,0.4927375,112610.0,112600.0,1.34645995]
[1758702846097,0.1319375,112610.0,112600.0,1.34645995]
[1758702848189,0.1319375,112610.0,112600.0,1.18671776]
[1758702848594,0.04317,112610.0,112600.0,1.18671776]
[1758702849397,0.007,112610.0,112600.0,1.18671776]
[1758702851095,0.01978,112610.0,112600.0,1.18671776]
[1758702851295,0.01978,112610.0,112600.0,1.34645995]
[1758702852293,1.14152634,112610.0,112600.0,0.15974219]
[1758702852491,2.19650518,112610.0,112600.0,0.12474219]
[1758702852696,1.94696634,112610.0,112600.0,0.12474219]
[1758702852899,0.02236,112580.0,112570.0,0.37404724]
[1758702853095,1.2332695,112590.0,112580.0,0.1242212]
[1758702853298,0.4719495,112590.0,112580.0,0.37404004]
[1758702853500,0.4719495,112590.0,112580.0,0.28524884]
[1758702853696,0.4847295,112590.0,112580.0,0.28524884]
[1758702854804,0.55640877,112590.0,112580.0,0.28524884]
[1758702855407,0.55640877,112590.0,112580.0,0.29324884]
[1758702855913,0.55640877,112590.0,112580.0,0.28524884]
[1758702856212,0.56040877,112590.0,112580.0,0.28524884]
[1758702856413,0.56340877,112590.0,112580.0,0.37404014]
[1758702858613,0.56340877,112590.0,112580.0,0.1242213]
[1758702858913,0.56340877,112590.0,112580.0,0.37404014]
[1758702860214,0.56340877,112590.0,112580.0,0.28524884]
[1758702861202,0.56340877,112590.0,112580.0,0.37404014]
[1758702865822,0.56340267,112590.0,112580.0,0.37404014]
[1758702866025,0.55062267,112590.0,112580.0,0.37404014]
[1758702866525,0.56359267,112590.0,112580.0,0.37404014]
[1758702869723,0.56359267,112590.0,112580.0,0.1242213]
[1758702869923,0.56359267,112590.0,112580.0,0.27254884]
[1758702870222,0.56359267,112590.0,112580.0,0.02273]
[1758702870421,0.56359267,112590.0,112580.0,0.27254884]
[1758702870623,0.56359267,112590.0,112580.0,0.36134014]
[1758702875323,0.55062267,112590.0,112580.0,0.37475014]
[1758702878426,0.39016,112590.0,112580.0,0.37475014]
[1758702878631,0.007,112590.0,112580.0,1.3223671]
[1758702878828,0.0002,112600.0,112590.0,0.1245433]
[1758702879034,0.361,112610.0,112600.0,0.1245354]
[1758702879237,0.3608,112610.0,112600.0,0.37435424]
[1758702879634,0.38285,112610.0,112600.0,0.37435424]
[1758702880635,0.4716175,112610.0,112600.0,0.37435424]
[1758702881038,0.4766175,112610.0,112600.0,0.37435424]
[1758702881726,0.4826175,112610.0,112600.0,0.37435424]
[1758702882234,0.4766175,112610.0,112600.0,0.37435424]
[1758702882533,0.4766175,112610.0,112600.0,0.37735424]
[1758702882738,0.38785,112610.0,112600.0,0.37735424]
[1758702884238,0.38485,112610.0,112600.0,0.37735424]
[1758702885039,0.3628,112610.0,112600.0,0.37735424]
[1758702885531,0.38485,112610.0,112600.0,0.37735424]
[1758702887540,0.4736175,112610.0,112600.0,0.37735424]
[1758702887843,0.4862875,112610.0,112600.0,0.02535]
[1758702888635,0.4862875,112610.0,112600.0,0.1141255]
[1758702891638,0.4862875,112610.0,112600.0,0.02535]
[1758702891943,1.49690634,112610.0,112600.0,0.003]
[1758702892733,1.2470875,112610.0,112600.0,0.003]
[1758702892930,0.8470875,112610.0,112600.0,0.27431884]
[1758702893136,1.6519275,112610.0,112600.0,0.1132761]
[1758702893334,1.6519275,112610.0,112600.0,0.0245]
[1758702893536,2.30174634,112610.0,112600.0,0.003]
[1758702894141,2.0519275,112610.0,112600.0,0.003]
[1758702898747,2.33307312,112610.0,112600.0,0.28414562]